[Event "Nové Hrady - Rapid A"]
[Site "Nové Hrady, Czech Republic"]
[Date "2024.08.10"]
[Round "1.1"]
[White "Hák, David"]
[Black "Černý, Zbyšek"]
[Result "1-0"]
[TimeControl "2x15min+5s"]
[WhiteFideId "377007"]
[BlackFideId "23739380"]
[WhiteElo "2192"]
[BlackElo "1560"]

1. d4 {[%clk 00:15:09]} {[%emt 14:34:54]} d5 {[%clk 00:15:02]} {[%emt
00:00:09]} 2. c4 {[%clk 00:15:13]} e6 {[%clk 00:15:01]} {[%emt 00:00:06]} 3.
Nc3 {[%clk 00:15:17]} c5 {[%clk 00:15:02]} {[%emt 00:00:06]} 4. cxd5 {[%clk
00:15:08]} {[%emt 00:00:14]} cxd4 {[%clk 00:15:02]} {[%emt 00:00:05]} 5. Qxd4
{[%clk 00:14:55]} {[%emt 00:00:17]} Nc6 {[%clk 00:15:05]} {[%emt 00:00:02]} 6.
Qa4 {[%clk 00:13:15]} {[%emt 00:01:45]} exd5 {[%clk 00:14:38]} {[%emt
00:00:32]} 7. e3 {[%clk 00:13:18]} {[%emt 00:00:02]} Nf6 {[%clk 00:13:33]}
{[%emt 00:01:10]} 8. Nf3 {[%clk 00:13:21]} {[%emt 00:00:02]} Bd7 {[%clk
00:13:07]} {[%emt 00:00:32]} 9. Qd1 {[%clk 00:13:15]} {[%emt 00:00:10]} Be7
{[%clk 00:12:04]} {[%emt 00:01:08]} 10. Be2 {[%clk 00:13:02]} {[%emt 00:00:18]}
O-O {[%clk 00:12:02]} {[%emt 00:00:07]} 11. O-O {[%clk 00:12:50]} {[%emt
00:00:17]} Qc7 {[%clk 00:11:21]} {[%emt 00:00:45]} 12. b3 {[%clk 00:12:27]}
{[%emt 00:00:29]} Rad8 {[%clk 00:10:15]} {[%emt 00:01:11]} 13. Bb2 {[%clk
00:12:08]} {[%emt 00:00:24]} a6 {[%clk 00:09:46]} {[%emt 00:00:34]} 14. Nxd5
{[%clk 00:09:21]} {[%emt 00:02:52]} Nxd5 {[%clk 00:09:44]} {[%emt 00:00:07]} 15.
Qxd5 {[%clk 00:09:25]} Be6 {[%clk 00:09:16]} {[%emt 00:00:34]} 16. Qh5 {[%clk
00:08:48]} {[%emt 00:00:42]} Rd5 {[%clk 00:07:26]} {[%emt 00:01:56]} 17. Ne5
{[%clk 00:07:01]} {[%emt 00:01:51]} Nxe5 {[%clk 00:07:01]} {[%emt 00:00:30]} 18.
Rac1 {[%clk 00:05:30]} {[%emt 00:01:36]} Qb8 {[%clk 00:06:15]} {[%emt
00:00:51]} 19. e4 {[%clk 00:04:52]} {[%emt 00:00:43]} Nf3+ {[%clk 00:01:14]}
{[%emt 00:05:06]} 20. Qxf3 {[%clk 00:04:51]} {[%emt 00:00:06]} Rg5 {[%clk
00:01:17]} {[%emt 00:00:02]} 21. e5 {[%clk 00:03:45]} {[%emt 00:01:11]} f6
{[%clk 00:00:45]} {[%emt 00:00:38]} 22. exf6 {[%clk 00:02:56]} {[%emt
00:00:53]} Bxf6 {[%clk 00:00:48]} 23. Bxf6 {[%clk 00:01:40]} {[%emt 00:01:22]}
Rxf6 {[%clk 00:00:52]} 24. Qe3 {[%clk 00:00:50]} {[%emt 00:00:56]} Rh6 {[%clk
00:00:39]} {[%emt 00:00:17]} 25. f4 {[%emt 00:00:18]} Rgg6 {[%clk 00:00:23]}
{[%emt 00:00:08]} 26. Rc5 {[%clk 00:00:36]} {[%emt 00:00:20]} Bh3 {[%clk
00:00:20]} {[%emt 00:00:07]} 27. Bf3 {[%clk 00:00:25]} {[%emt 00:00:17]} Bd7
{[%clk 00:00:20]} {[%emt 00:00:04]} 28. Rd1 {[%clk 00:00:25]} {[%emt 00:00:05]}
Qe8 {[%clk 00:00:09]} {[%emt 00:00:16]} 29. Qxe8+ {[%clk 00:00:19]} {[%emt
00:00:11]} Bxe8 {[%clk 00:00:13]} 30. Rc8 {[%clk 00:00:22]} {[%emt 00:00:03]}
Kf7 {[%clk 00:00:17]} 31. Bd5+ {[%clk 00:00:25]} {[%emt 00:00:04]} Ke7 {[%clk
00:00:20]} 32. Re1+ {[%clk 00:00:29]} {[%emt 00:00:02]} Kd6 {[%clk 00:00:24]}
33. Bxb7 {[%clk 00:00:21]} {[%emt 00:00:14]} Bb5 {[%clk 00:00:24]} {[%emt
00:00:05]} 34. Bf3 {[%clk 00:00:17]} {[%emt 00:00:09]} Re6 {[%clk 00:00:23]}
{[%emt 00:00:05]} 35. Rd1+ {[%clk 00:00:21]} Ke7 {[%clk 00:00:26]} {[%emt
00:00:03]} 36. Rc7+ {[%clk 00:00:25]} Kf6 {[%clk 00:00:29]} {[%emt 00:00:03]}
37. g4 {[%clk 00:00:25]} {[%emt 00:00:05]} Rh3 {[%clk 00:00:19]} {[%emt
00:00:16]} 38. Bg2 {[%clk 00:00:17]} {[%emt 00:00:12]} Rhe3 {[%clk 00:00:20]}
{[%emt 00:00:05]} 39. g5+ {[%clk 00:00:20]} {[%emt 00:00:02]} Kg6 {[%clk
00:00:23]} 40. Rc2 {[%clk 00:00:20]} {[%emt 00:00:06]} Re2 {[%clk 00:00:14]}
{[%emt 00:00:14]} 41. Rxe2 {[%clk 00:00:17]} {[%emt 00:00:08]} Rxe2 {[%clk
00:00:18]} {[%emt 00:00:02]} 42. a4 {[%clk 00:00:18]} {[%emt 00:00:03]} Bd3
{[%clk 00:00:20]} {[%emt 00:00:03]} 43. Rxd3 {[%clk 00:00:20]} {[%emt
00:00:03]} Kf5 {[%clk 00:00:17]} {[%emt 00:00:08]} 44. Rf3 {[%clk 00:00:22]}
{[%emt 00:00:04]} Kg4 {[%clk 00:00:15]} {[%emt 00:00:06]} 45. Rf2 {[%clk
00:00:24]} {[%emt 00:00:04]} Re1+ {[%clk 00:00:16]} {[%emt 00:00:04]} 46. Rf1
{[%clk 00:00:28]} Re3 {[%clk 00:00:19]} {[%emt 00:00:02]} 47. h3+ {[%clk
00:00:29]} {[%emt 00:00:04]} Kf5 {[%clk 00:00:18]} {[%emt 00:00:11]} 48. b4 Rb3
{[%emt 00:00:13]} 49. b5 {[%clk 00:00:24]} {[%emt 00:00:02]} axb5 {[%clk
00:00:21]} 50. axb5 {[%clk 00:00:27]} {[%emt 00:00:03]} Rb2 {[%clk 00:00:19]}
{[%emt 00:00:11]} 1-0

[Event "Nové Hrady - Rapid A"]
[Site "Nové Hrady, Czech Republic"]
[Date "2024.08.10"]
[Round "1.2"]
[White "Vondruška, Leoš"]
[Black "Steinbauer, Sebastián"]
[Result "0-1"]
[TimeControl "2x15min+5s"]
[WhiteFideId "23730099"]
[BlackFideId "399272"]
[WhiteElo "1506"]
[BlackElo "2018"]

1. e4 {[%clk 00:15:09]} {[%emt 15:50:13]} e5 {[%clk 00:15:09]} {[%emt
00:00:02]} 2. Nf3 {[%clk 00:15:12]} {[%emt 00:00:02]} Nf6 {[%clk 00:15:12]} 3.
d3 {[%clk 00:14:59]} {[%emt 00:00:20]} Nc6 {[%clk 00:15:13]} {[%emt 00:00:04]}
4. Nc3 {[%clk 00:14:53]} {[%emt 00:00:10]} d5 {[%clk 00:15:17]} {[%emt
00:00:02]} 5. exd5 {[%clk 00:14:29]} {[%emt 00:00:28]} Nxd5 {[%clk 00:15:20]} 6.
Bd2 {[%clk 00:14:17]} {[%emt 00:00:20]} Bb4 {[%clk 00:15:08]} {[%emt 00:00:17]}
7. Nxd5 {[%clk 00:13:42]} {[%emt 00:00:39]} Bxd2+ {[%clk 00:15:10]} {[%emt
00:00:03]} 8. Qxd2 {[%clk 00:13:30]} {[%emt 00:00:17]} Qxd5 {[%clk 00:15:13]}
{[%emt 00:00:02]} 9. a3 {[%clk 00:13:02]} {[%emt 00:00:34]} O-O {[%clk
00:15:15]} {[%emt 00:00:06]} 10. Be2 {[%clk 00:12:54]} {[%emt 00:00:10]} Bf5
{[%clk 00:15:06]} {[%emt 00:00:14]} 11. O-O {[%clk 00:12:49]} {[%emt 00:00:10]}
Rad8 {[%clk 00:15:08]} {[%emt 00:00:03]} 12. Rad1 {[%clk 00:11:46]} {[%emt
00:01:07]} e4 {[%clk 00:15:06]} {[%emt 00:00:08]} 13. dxe4 {[%clk 00:11:30]}
{[%emt 00:00:20]} Qxe4 {[%clk 00:15:08]} {[%emt 00:00:04]} 14. Bd3 {[%clk
00:10:59]} {[%emt 00:00:36]} Qd5 {[%clk 00:14:49]} {[%emt 00:00:22]} 15. Bxf5
{[%clk 00:10:44]} {[%emt 00:00:21]} Qxf5 {[%clk 00:14:46]} {[%emt 00:00:09]} 16.
Qc3 {[%clk 00:10:12]} {[%emt 00:00:36]} Qb5 {[%clk 00:14:30]} {[%emt 00:00:21]}
17. Rfe1 {[%clk 00:09:25]} {[%emt 00:00:52]} h6 {[%clk 00:13:56]} {[%emt
00:00:40]} 18. h3 {[%clk 00:09:27]} {[%emt 00:00:03]} Rfe8 {[%clk 00:13:40]}
{[%emt 00:00:21]} 19. Rxd8 {[%clk 00:08:17]} {[%emt 00:01:14]} Rxd8 {[%clk
00:13:43]} {[%emt 00:00:03]} 20. b3 {[%clk 00:07:13]} {[%emt 00:01:09]} Qd5
{[%clk 00:13:34]} {[%emt 00:00:13]} 21. b4 {[%clk 00:06:36]} {[%emt 00:00:42]}
a6 {[%clk 00:13:33]} {[%emt 00:00:06]} 22. Qb2 {[%clk 00:05:34]} {[%emt
00:01:08]} Qc4 {[%clk 00:13:11]} {[%emt 00:00:25]} 23. c3 {[%clk 00:05:14]}
{[%emt 00:00:26]} Rd3 {[%clk 00:10:01]} {[%emt 00:03:14]} 24. Re3 {[%clk
00:04:33]} {[%emt 00:00:47]} Rxe3 {[%clk 00:09:47]} {[%emt 00:00:19]} 25. fxe3
{[%clk 00:04:34]} {[%emt 00:00:04]} Qd3 {[%clk 00:09:49]} {[%emt 00:00:02]} 26.
Kf2 {[%clk 00:04:30]} {[%emt 00:00:11]} Kf8 {[%clk 00:08:25]} {[%emt 00:01:29]}
27. Qc1 {[%clk 00:04:00]} {[%emt 00:00:35]} Qf5 {[%clk 00:08:06]} {[%emt
00:00:23]} 28. Ke2 {[%clk 00:03:51]} {[%emt 00:00:14]} Ke7 {[%clk 00:07:44]}
{[%emt 00:00:28]} 29. Qd1 {[%clk 00:03:41]} {[%emt 00:00:15]} Ne5 {[%clk
00:07:17]} {[%emt 00:00:31]} 30. Nxe5 {[%clk 00:03:29]} {[%emt 00:00:17]} Qxe5
{[%clk 00:07:20]} {[%emt 00:00:02]} 31. Qd3 {[%clk 00:03:01]} {[%emt 00:00:33]}
Qe6 {[%clk 00:07:12]} {[%emt 00:00:13]} 32. Qd2 {[%clk 00:02:50]} {[%emt
00:00:15]} Qc4+ {[%clk 00:07:12]} {[%emt 00:00:06]} 33. Kf2 {[%clk 00:02:39]}
{[%emt 00:00:17]} Qe6 {[%clk 00:07:00]} {[%emt 00:00:16]} 34. Kg1 {[%clk
00:02:39]} {[%emt 00:00:05]} Qe4 {[%clk 00:06:59]} {[%emt 00:00:06]} 35. Kh2
{[%clk 00:02:38]} {[%emt 00:00:06]} g5 {[%clk 00:06:51]} {[%emt 00:00:13]} 36.
a4 {[%clk 00:02:34]} {[%emt 00:00:10]} Qc6 {[%clk 00:06:31]} {[%emt 00:00:24]}
37. a5 {[%clk 00:02:35]} {[%emt 00:00:05]} Qd6+ {[%clk 00:06:16]} {[%emt
00:00:46]} 38. Qxd6+ {[%clk 00:02:37]} {[%emt 00:00:34]} Kxd6 {[%clk 00:06:18]}
{[%emt 00:00:03]} 39. Kg3 {[%clk 00:02:14]} {[%emt 00:00:29]} f5 {[%clk
00:06:21]} 40. Kf3 {[%clk 00:02:10]} {[%emt 00:00:10]} Kd5 {[%clk 00:06:13]}
{[%emt 00:00:13]} 41. Ke2 {[%clk 00:02:13]} {[%emt 00:00:02]} c5 {[%clk
00:06:11]} {[%emt 00:00:07]} 42. Kd3 {[%clk 00:02:07]} {[%emt 00:00:11]} c4+
{[%clk 00:05:29]} {[%emt 00:00:47]} 43. Ke2 {[%clk 00:01:10]} {[%emt 00:01:27]}
Ke4 {[%clk 00:05:17]} 44. g4 {[%clk 00:01:00]} {[%emt 00:00:16]} f4 {[%clk
00:05:15]} {[%emt 00:00:07]} 45. exf4 {[%clk 00:00:56]} {[%emt 00:00:09]} gxf4
{[%clk 00:05:18]} 46. h4 {[%clk 00:00:54]} {[%emt 00:00:07]} f3+ {[%clk
00:05:22]} 47. Kd2 {[%clk 00:00:46]} {[%emt 00:00:15]} Kf4 {[%clk 00:05:24]}
{[%emt 00:00:03]} 48. g5 {[%clk 00:00:41]} {[%emt 00:00:09]} hxg5 {[%clk
00:05:14]} {[%emt 00:00:15]} 49. hxg5 {[%clk 00:00:44]} Kxg5 {[%clk 00:05:18]}
50. Ke3 {[%clk 00:00:43]} {[%emt 00:00:09]} Kg4 {[%clk 00:05:22]} 51. Kf2
{[%clk 00:00:46]} {[%emt 00:00:02]} Kf4 {[%clk 00:05:26]} 52. Ke1 {[%clk
00:00:45]} {[%emt 00:00:07]} Ke3 {[%clk 00:05:30]} 53. Kf1 {[%clk 00:00:45]}
{[%emt 00:00:06]} f2 {[%clk 00:05:34]} 54. Kg2 {[%clk 00:00:47]} {[%emt
00:00:05]} Ke2 {[%clk 00:05:38]} 0-1

[Event "Nové Hrady - Rapid A"]
[Site "Nové Hrady, Czech Republic"]
[Date "2024.08.10"]
[Round "1.5"]
[White "Dudarec, Elias"]
[Black "Brabcová, Nikola"]
[Result "1-0"]
[TimeControl "2x15min+5s"]
[WhiteFideId "23714930"]
[BlackFideId "23739371"]
[WhiteElo "1588"]
[BlackElo "1529"]

1. e4 {[%clk 00:15:08]} {[%emt 00:00:02]} c5 {[%clk 00:15:08]} {[%emt
00:00:03]} 2. b4 {[%clk 00:15:11]} {[%emt 00:00:01]} Nc6 {[%clk 00:15:04]}
{[%emt 00:00:09]} 3. b5 {[%clk 00:15:07]} {[%emt 00:00:09]} Nb8 {[%clk
00:14:41]} {[%emt 00:00:29]} 4. Nc3 {[%clk 00:15:01]} {[%emt 00:00:10]} e5
{[%clk 00:14:13]} {[%emt 00:00:33]} 5. Nf3 {[%clk 00:14:57]} {[%emt 00:00:09]}
d6 {[%clk 00:13:49]} {[%emt 00:00:29]} 6. Bc4 {[%clk 00:14:33]} {[%emt
00:00:28]} Nf6 {[%clk 00:13:31]} {[%emt 00:00:24]} 7. d3 {[%clk 00:14:09]}
{[%emt 00:00:29]} Bg4 {[%clk 00:13:04]} {[%emt 00:00:32]} 8. h3 {[%clk
00:14:04]} {[%emt 00:00:10]} Bh5 {[%clk 00:12:29]} {[%emt 00:00:40]} 9. O-O
{[%clk 00:13:44]} {[%emt 00:00:25]} Be7 {[%clk 00:11:50]} {[%emt 00:00:43]} 10.
Nd5 {[%clk 00:12:26]} {[%emt 00:01:24]} Nxd5 {[%clk 00:11:01]} {[%emt
00:00:54]} 11. Bxd5 {[%clk 00:12:26]} {[%emt 00:00:06]} Nd7 {[%clk 00:10:12]}
{[%emt 00:00:53]} 12. Bxb7 {[%clk 00:12:07]} {[%emt 00:00:24]} Rb8 {[%clk
00:10:15]} {[%emt 00:00:02]} 13. Bc6 {[%clk 00:12:09]} {[%emt 00:00:04]} O-O
{[%clk 00:10:13]} {[%emt 00:00:06]} 14. Qe2 {[%clk 00:10:00]} {[%emt 00:02:15]}
Nf6 {[%clk 00:09:05]} {[%emt 00:01:13]} 15. Qe3 {[%clk 00:09:31]} {[%emt
00:00:33]} Rb6 {[%clk 00:07:09]} {[%emt 00:02:00]} 16. Bd2 {[%clk 00:09:12]}
{[%emt 00:00:26]} Rb8 {[%clk 00:05:13]} {[%emt 00:02:00]} 17. a4 {[%clk
00:08:59]} {[%emt 00:00:19]} Qb6 {[%clk 00:04:32]} {[%emt 00:00:46]} 18. a5
{[%clk 00:08:54]} {[%emt 00:00:10]} Qd8 {[%clk 00:04:21]} {[%emt 00:00:13]} 19.
Rfb1 {[%clk 00:08:45]} {[%emt 00:00:16]} d5 {[%emt 00:00:40]} 20. Nxe5 {[%clk
00:06:25]} {[%emt 00:02:00]} d4 {[%clk 00:03:57]} {[%emt 00:00:19]} 21. Qe1
{[%clk 00:05:43]} {[%emt 00:00:48]} Bd6 {[%clk 00:03:38]} {[%emt 00:00:23]} 22.
Nc4 {[%clk 00:05:35]} {[%emt 00:00:12]} Bc7 {[%clk 00:03:30]} {[%emt 00:00:14]}
23. f4 {[%clk 00:04:41]} {[%emt 00:00:59]} Nd7 {[%clk 00:02:11]} {[%emt
00:01:24]} 24. g4 {[%clk 00:04:26]} {[%emt 00:00:20]} Bxg4 {[%clk 00:01:22]}
{[%emt 00:00:54]} 25. hxg4 {[%clk 00:04:28]} {[%emt 00:00:03]} f5 {[%clk
00:00:54]} {[%emt 00:00:33]} 26. gxf5 {[%clk 00:04:12]} {[%emt 00:00:21]} Nf6
{[%clk 00:00:51]} {[%emt 00:00:09]} 27. e5 {[%clk 00:03:17]} {[%emt 00:00:59]}
Ng4 {[%clk 00:00:44]} {[%emt 00:00:12]} 28. Qg3 {[%clk 00:03:07]} {[%emt
00:00:14]} Nh6 {[%clk 00:00:39]} {[%emt 00:00:11]} 29. f6 {[%clk 00:02:17]}
{[%emt 00:00:56]} Nf5 {[%clk 00:00:25]} {[%emt 00:00:19]} 30. Qg4 {[%clk
00:02:14]} {[%emt 00:00:07]} Qc8 {[%clk 00:00:19]} {[%emt 00:00:12]} 31. Be4
{[%clk 00:01:43]} {[%emt 00:00:36]} g6 {[%clk 00:00:16]} {[%emt 00:00:07]} 32.
Bxf5 {[%clk 00:01:43]} {[%emt 00:00:06]} Qxf5 {[%clk 00:00:19]} 33. Qxf5 {[%clk
00:01:47]} gxf5 {[%clk 00:00:23]} 34. Kf2 {[%clk 00:01:50]} Kf7 {[%clk
00:00:25]} {[%emt 00:00:08]} 35. Rg1 {[%clk 00:01:51]} {[%emt 00:00:04]} Rg8
{[%clk 00:00:29]} 36. Rxg8 {[%clk 00:01:49]} {[%emt 00:00:08]} Rxg8 {[%clk
00:00:33]} {[%emt 00:00:02]} 37. Rg1 {[%clk 00:01:53]} Rxg1 {[%clk 00:00:14]}
{[%emt 00:00:24]} 38. Kxg1 {[%clk 00:01:57]} Ke6 {[%clk 00:00:15]} {[%emt
00:00:06]} 39. b6 {[%clk 00:01:54]} {[%emt 00:00:07]} axb6 {[%emt 00:00:08]} 40.
axb6 {[%clk 00:01:57]} Bxb6 {[%clk 00:00:17]} 41. Nxb6 {[%clk 00:02:00]} h5
{[%clk 00:00:17]} {[%emt 00:00:08]} 42. Nc4 {[%clk 00:02:00]} {[%emt 00:00:05]}
h4 {[%clk 00:00:18]} {[%emt 00:00:04]} 43. Nd6 {[%clk 00:02:04]} {[%emt
00:00:02]} h3 {[%clk 00:00:19]} {[%emt 00:00:04]} 44. f7 {[%clk 00:02:01]}
{[%emt 00:00:08]} Ke7 {[%clk 00:00:23]} 45. Be1 {[%clk 00:02:01]} {[%emt
00:00:05]} Kf8 {[%clk 00:00:19]} {[%emt 00:00:07]} 46. Bh4 {[%clk 00:02:02]}
{[%emt 00:00:05]} h2+ {[%emt 00:00:14]} 47. Kxh2 {[%emt 00:00:04]} c4 {[%clk
00:00:13]} {[%emt 00:00:02]} 48. e6 {[%clk 00:02:06]} {[%emt 00:00:02]} cxd3
{[%clk 00:00:14]} {[%emt 00:00:05]} 49. e7+ {[%clk 00:02:09]} {[%emt 00:00:02]}
Kg7 {[%clk 00:00:15]} {[%emt 00:00:03]} 50. f8=Q+ {[%emt 00:00:07]} Kg6 {[%clk
00:00:14]} {[%emt 00:00:02]} 51. e8=Q+ {[%emt 00:00:11]} Kh7 {[%clk 00:00:15]}
{[%emt 00:00:04]} 52. Qef7# {[%clk 00:02:10]} 1-0

[Event "Nové Hrady - Rapid A"]
[Site "Nové Hrady, Czech Republic"]
[Date "2024.08.10"]
[Round "1.6"]
[White "Polanský, Matěj"]
[Black "Junek, Petr"]
[Result "1/2-1/2"]
[TimeControl "2x15min+5s"]
[WhiteFideId "23741872"]
[BlackFideId "23739282"]
[WhiteElo "1520"]
[BlackElo "1762"]

1. e4 {[%clk 00:15:08]} {[%emt 00:00:02]} c5 {[%clk 00:15:09]} {[%emt
00:00:02]} 2. Nc3 {[%emt 00:00:12]} Nc6 {[%clk 00:15:10]} {[%emt 00:00:01]} 3.
f4 {[%clk 00:15:03]} {[%emt 00:00:05]} g6 {[%clk 00:15:09]} {[%emt 00:00:07]} 4.
Nf3 {[%clk 00:15:02]} {[%emt 00:00:06]} Bg7 {[%clk 00:15:12]} 5. Bb5 {[%clk
00:15:02]} {[%emt 00:00:05]} Nd4 {[%clk 00:15:10]} {[%emt 00:00:07]} 6. Bc4
{[%clk 00:14:17]} {[%emt 00:00:50]} d6 {[%clk 00:15:14]} {[%emt 00:00:02]} 7.
d3 {[%clk 00:14:17]} {[%emt 00:00:04]} Nf6 {[%clk 00:15:12]} {[%emt 00:00:07]}
8. O-O {[%clk 00:13:57]} {[%emt 00:00:25]} O-O {[%clk 00:15:14]} {[%emt
00:00:03]} 9. Be3 {[%clk 00:13:11]} {[%emt 00:00:51]} Bg4 {[%clk 00:15:06]}
{[%emt 00:00:12]} 10. Bxd4 {[%clk 00:12:47]} {[%emt 00:00:30]} Bxf3 {[%clk
00:15:08]} {[%emt 00:00:03]} 11. Qxf3 {[%clk 00:12:41]} {[%emt 00:00:11]} cxd4
{[%clk 00:15:11]} {[%emt 00:00:02]} 12. Nd5 {[%clk 00:12:23]} {[%emt 00:00:23]}
Nxd5 {[%clk 00:15:00]} {[%emt 00:00:16]} 13. Bxd5 {[%clk 00:12:19]} {[%emt
00:00:09]} Qb6 {[%clk 00:14:31]} {[%emt 00:00:33]} 14. Bb3 {[%clk 00:12:11]}
{[%emt 00:00:14]} e6 {[%clk 00:13:35]} {[%emt 00:01:01]} 15. Rae1 {[%clk
00:11:05]} {[%emt 00:01:11]} Rac8 {[%clk 00:13:38]} {[%emt 00:00:02]} 16. Kh1
{[%clk 00:10:28]} {[%emt 00:00:42]} Qc5 {[%clk 00:12:36]} {[%emt 00:01:07]} 17.
Qg4 {[%clk 00:08:15]} {[%emt 00:02:18]} b5 {[%clk 00:12:27]} {[%emt 00:00:15]}
18. f5 {[%clk 00:07:33]} {[%emt 00:00:46]} exf5 {[%clk 00:11:39]} {[%emt
00:00:53]} 19. exf5 {[%clk 00:07:15]} {[%emt 00:00:23]} d5 {[%clk 00:10:10]}
{[%emt 00:01:35]} 20. fxg6 {[%clk 00:06:32]} {[%emt 00:00:47]} fxg6 {[%clk
00:10:12]} {[%emt 00:00:03]} 21. Qe6+ {[%clk 00:06:15]} {[%emt 00:00:22]} Kh8
{[%clk 00:10:11]} {[%emt 00:00:05]} 22. Rxf8+ {[%clk 00:04:37]} {[%emt
00:01:43]} Qxf8 {[%clk 00:09:02]} {[%emt 00:01:15]} 23. Qxd5 {[%clk 00:04:15]}
{[%emt 00:00:27]} Re8 {[%clk 00:08:01]} {[%emt 00:01:07]} 24. Rg1 {[%clk
00:03:43]} {[%emt 00:00:36]} Re5 {[%clk 00:06:21]} {[%emt 00:01:44]} 25. Qb7
{[%clk 00:02:45]} {[%emt 00:01:04]} Qe8 {[%clk 00:06:06]} {[%emt 00:00:20]} 26.
h3 {[%clk 00:02:13]} {[%emt 00:00:41]} Re1 {[%clk 00:06:06]} {[%emt 00:00:01]}
27. Qf3 {[%clk 00:01:29]} {[%emt 00:00:48]} Rxg1+ {[%clk 00:06:07]} {[%emt
00:00:06]} 28. Kxg1 {[%clk 00:01:32]} a5 {[%clk 00:03:24]} {[%emt 00:02:49]} 29.
a3 {[%clk 00:01:27]} {[%emt 00:00:09]} a4 {[%clk 00:03:17]} {[%emt 00:00:13]}
30. Ba2 {[%clk 00:01:26]} {[%emt 00:00:03]} Qe1+ {[%clk 00:02:51]} {[%emt
00:00:33]} 31. Qf1 {[%clk 00:01:29]} {[%emt 00:00:02]} Qd2 {[%clk 00:02:47]}
{[%emt 00:00:09]} 32. Bb1 {[%clk 00:00:55]} {[%emt 00:00:39]} h5 {[%clk
00:02:46]} {[%emt 00:00:06]} 33. Kh1 {[%clk 00:00:23]} {[%emt 00:00:37]} Bh6
{[%clk 00:02:41]} {[%emt 00:00:10]} 34. b3 {[%clk 00:00:21]} {[%emt 00:00:08]}
Qc1 {[%clk 00:02:38]} {[%emt 00:00:07]} 35. Qxc1 {[%clk 00:00:18]} {[%emt
00:00:07]} Bxc1 {[%clk 00:02:41]} {[%emt 00:00:03]} 36. bxa4 {[%clk 00:00:22]}
bxa4 {[%clk 00:02:45]} 37. Ba2 {[%clk 00:00:22]} {[%emt 00:00:08]} Bxa3 {[%clk
00:02:48]} {[%emt 00:00:02]} 38. Kg1 {[%clk 00:00:25]} {[%emt 00:00:01]} Bb2
{[%clk 00:02:46]} {[%emt 00:00:07]} 39. Kf1 {[%clk 00:00:25]} {[%emt 00:00:05]}
a3 {[%clk 00:02:50]} 40. Kf2 {[%clk 00:00:22]} {[%emt 00:00:09]} Kg7 {[%clk
00:02:54]} {[%emt 00:00:01]} 41. Kf3 {[%clk 00:00:26]} Kf6 {[%clk 00:02:58]} 42.
Ke4 {[%clk 00:00:30]} {[%emt 00:00:04]} Kg5 {[%clk 00:02:49]} {[%emt 00:00:14]}
43. Ke5 {[%clk 00:00:21]} {[%emt 00:00:13]} Kh4 {[%clk 00:02:47]} {[%emt
00:00:07]} 44. Kf6 {[%clk 00:00:25]} g5 {[%clk 00:02:51]} 45. Kf5 {[%clk
00:00:25]} {[%emt 00:00:06]} g4 {[%clk 00:02:49]} {[%emt 00:00:07]} 46. hxg4
{[%clk 00:00:16]} {[%emt 00:00:13]} hxg4 {[%clk 00:02:52]} {[%emt 00:00:03]} 47.
Kf4 {[%clk 00:00:18]} {[%emt 00:00:03]} Bc1+ {[%clk 00:02:29]} {[%emt
00:00:28]} 48. Kf5 {[%clk 00:00:11]} {[%emt 00:00:11]} Kg3 {[%clk 00:02:11]}
{[%emt 00:00:23]} 49. Bb3 {[%clk 00:00:11]} {[%emt 00:00:07]} Bb2 {[%clk
00:01:56]} {[%emt 00:00:19]} 50. Kg5 {[%clk 00:00:08]} {[%emt 00:00:09]} Bc3
{[%clk 00:01:51]} {[%emt 00:00:09]} 51. Kf5 {[%clk 00:00:12]} {[%emt 00:00:02]}
Kxg2 {[%clk 00:01:30]} {[%emt 00:00:25]} 52. Kxg4 {[%clk 00:00:15]} Kf2 {[%clk
00:01:34]} {[%emt 00:00:03]} 53. Kf4 {[%clk 00:00:14]} {[%emt 00:00:05]} Ke2
{[%clk 00:01:38]} {[%emt 00:00:01]} 54. Ke4 {[%clk 00:00:18]} Kd2 {[%clk
00:01:42]} {[%emt 00:00:03]} 55. Kd5 {[%clk 00:00:12]} {[%emt 00:00:04]} a2
{[%clk 00:01:32]} {[%emt 00:00:23]} 56. Bxa2 {[%clk 00:00:15]} Kxc2 {[%clk
00:01:36]} {[%emt 00:00:02]} 57. Bc4 {[%clk 00:00:19]} Bb2 {[%clk 00:01:30]}
{[%emt 00:00:12]} 1/2-1/2